bitfinex/quotes_SOLUSD_20240612
["timestamp","ask_amount","ask_price","bid_price","bid_amount"]
[1718212833257,7.63,158.77,158.68,45.0]
[1718212833467,7.63,158.77,158.71,7.63]
[1718212835874,7.63,158.74,158.63,21.7963]
[1718212836170,7.63,158.73,158.67,7.63]
[1718212836855,7.63,158.73,158.63,21.7963]
[1718212837169,7.63,158.73,158.67,7.63]
[1718212838852,7.63,158.7,158.6,25.212985]
[1718212839053,7.63,158.7,158.65,7.63]
[1718212839279,7.63,158.71,158.65,7.63]
[1718212839475,7.63,158.7,158.65,7.63]
[1718212839775,7.63,158.7,158.64,7.63]
[1718212839972,7.63,158.7,158.57,39.32121404]
[1718212840156,7.63,158.7,158.64,7.63]
[1718212840483,7.63,158.7,158.57,39.32121404]
[1718212840668,7.63,158.7,158.64,7.63]
[1718212841574,7.8,158.72,158.66,7.63]
[1718212842373,7.97,158.71,158.65,7.63]
[1718212842565,7.97,158.71,158.64,7.63]
[1718212842881,7.97,158.71,158.65,7.63]
[1718212845360,0.17,158.71,158.66,7.63]
[1718212845560,7.8,158.72,158.66,7.63]
[1718212846956,0.34,158.72,158.66,7.63]
[1718212847157,7.97,158.72,158.66,7.63]
[1718212848189,0.17,158.72,158.67,7.63]
[1718212848479,7.97,158.73,158.67,7.63]
[1718212849684,0.34,158.73,158.67,7.63]
[1718212849885,7.97,158.73,158.67,7.63]
[1718212851777,7.97,158.73,158.61,0.17]
[1718212851984,7.97,158.73,158.67,7.63]
[1718212852670,10.301,158.73,158.67,7.63]
[1718212853079,2.671,158.73,158.66,7.63]
[1718212853292,7.63,158.72,158.66,7.63]
[1718212855383,0.34,158.73,158.66,7.63]
[1718212855585,7.63,158.72,158.66,7.63]
[1718212856460,7.63,158.72,158.67,7.63]
[1718212856884,7.97,158.73,158.67,7.63]
[1718212857586,0.17,158.72,158.67,7.63]
[1718212858483,7.97,158.73,158.67,7.63]
[1718212858675,6.5577,158.74,158.64,7.63]
[1718212858885,0.17,158.73,158.69,7.63]
[1718212859670,6.5577,158.74,158.69,7.63]
[1718212860568,6.5577,158.74,158.68,7.63]
[1718212860897,14.1877,158.74,158.68,7.63]
[1718212861976,10.301,158.73,158.61,52.2581]
[1718212862191,2.5013,158.71,158.61,6.5781]
[1718212862383,23.557,158.7,158.6,15.0945]
[1718212862770,23.557,158.7,158.64,7.63]
[1718212864395,23.557,158.7,158.67,7.63]
[1718212864396,15.927,158.7,158.67,7.63]
[1718212865392,15.927,158.7,158.66,7.63]
[1718212866993,15.927,158.7,158.61,0.17]
[1718212867198,15.927,158.7,158.65,7.63]
[1718212867493,15.927,158.7,158.66,7.63]
[1718212870169,15.927,158.7,158.61,45.0]
[1718212870375,0.17,158.73,158.68,7.63]
[1718212870574,0.51,158.73,158.68,7.63]
[1718212873100,0.51,158.73,158.67,7.63]
[1718212873795,0.17,158.73,158.68,7.63]
[1718212873990,32.0385,158.74,158.68,7.63]
[1718212874393,29.7077,158.74,158.68,7.63]
[1718212875202,32.0385,158.74,158.68,7.63]
[1718212876782,7.63,158.73,158.67,7.63]
[1718212877086,7.8,158.72,158.66,7.63]
[1718212877494,7.8,158.71,158.65,7.63]
[1718212877672,7.97,158.71,158.65,7.63]
[1718212879578,7.63,158.71,158.65,7.63]
[1718212879901,7.97,158.72,158.66,7.63]
[1718212880198,0.34,158.72,158.66,7.63]
[1718212880375,21.9077,158.74,158.67,7.63]
[1718212880577,29.5377,158.74,158.67,7.63]
[1718212883294,29.5377,158.74,158.68,7.63]
[1718212884104,31.8685,158.74,158.67,7.63]
[1718212884586,7.63,158.73,158.67,7.63]
[1718212889001,9.961,158.73,158.67,7.63]
[1718212889306,7.63,158.72,158.66,7.63]
[1718212889486,2.5013,158.71,158.65,7.63]
[1718212889691,10.1313,158.71,158.65,7.63]
[1718212889898,10.1313,158.71,158.6,15.0945]
[1718212890104,10.1313,158.71,158.61,20.0]
[1718212890412,7.63,158.71,158.65,7.63]
[1718212890798,7.63,158.72,158.66,7.63]
[1718212892192,0.34,158.73,158.66,7.63]
[1718212892396,24.2386,158.74,158.68,7.63]
[1718212892397,29.5377,158.74,158.68,7.63]
[1718212892604,21.9077,158.74,158.68,7.63]
[1718212892801,21.9077,158.74,158.7,7.63]
[1718212893892,21.9077,158.74,158.69,7.63]
[1718212894412,21.9077,158.74,158.68,7.63]
[1718212896012,29.5377,158.74,158.68,7.63]
[1718212897927,29.5377,158.74,158.64,30.52]
[1718212898093,31.8686,158.74,158.68,7.63]
[1718212898295,31.8686,158.74,158.65,45.0]
[1718212898600,29.5377,158.74,158.68,7.63]
[1718212898912,7.63,158.71,158.65,45.0]
[1718212899212,9.9614,158.7,158.6,21.7271]
[1718212899425,9.9614,158.7,158.64,7.63]
[1718212899727,7.63,158.7,158.64,7.63]
[1718212900229,23.4481,158.71,158.6,21.7271]
[1718212900431,15.8181,158.71,158.66,7.63]
[1718212901837,15.8181,158.71,158.68,7.63]
[1718212905819,14.0177,158.74,158.68,7.63]
[1718212906338,6.3877,158.74,158.69,7.63]
[1718212906713,16.3486,158.74,158.62,0.17]
[1718212906937,8.7186,158.74,158.68,7.63]
[1718212907131,16.3486,158.74,158.68,7.63]
[1718212907333,14.0177,158.74,158.68,7.63]
[1718212907929,14.0177,158.74,158.69,7.63]
[1718212908238,6.3877,158.74,158.69,7.63]
[1718212908614,6.3877,158.74,158.64,30.52]
[1718212908809,6.3877,158.74,158.65,45.0]
[1718212911023,6.3877,158.74,158.7,7.63]
[1718212913145,15.3397,158.75,158.7,7.63]
[1718212913452,15.3397,158.75,158.71,7.63]
[1718212914120,15.3397,158.75,158.72,7.63]
[1718212922556,15.3397,158.75,158.71,7.63]
[1718212925226,15.3397,158.75,158.72,7.63]
[1718212926660,15.3397,158.75,158.71,7.63]
[1718212926961,15.3397,158.75,158.72,7.63]
[1718212928482,15.3397,158.75,158.71,7.63]
[1718212930177,15.3397,158.75,158.72,7.63]
[1718212932580,15.3397,158.75,158.73,7.63]
[1718212935791,6.2654,158.78,158.73,7.63]
[1718212935968,6.2654,158.78,158.74,7.63]
[1718212936173,6.2654,158.78,158.73,7.63]
[1718212936687,6.2654,158.78,158.74,7.63]
[1718212937174,6.2654,158.78,158.73,7.63]
[1718212938793,2.3304,158.77,158.72,7.63]
[1718212938971,16.2257,158.78,158.72,7.63]
[1718212939891,6.2654,158.78,158.72,7.63]
[1718212940292,6.2654,158.78,158.73,7.63]
[1718212940588,2.5005,158.77,158.72,7.63]
[1718212941388,0.17,158.77,158.72,7.63]
[1718212944368,6.2654,158.78,158.72,7.63]
[1718212944670,8.5956,158.78,158.72,7.63]
[1718212945471,6.2654,158.78,158.72,7.63]
[1718212946596,6.2654,158.78,158.73,7.63]
[1718212949689,6.2654,158.78,158.72,7.63]
[1718212954804,14.89357458,158.8,158.74,7.63]
[1718212954978,0.17,158.79,158.74,7.63]
[1718212956294,2.5001,158.79,158.74,7.63]
[1718212958101,2.3301,158.79,158.74,7.63]
[1718212960403,7.63,158.76,158.66,0.17]
[1718212960572,7.63,158.76,158.63,16.2257]
[1718212960573,7.63,158.74,158.63,3.29287358]
[1718212960780,2.3312,158.72,158.68,7.63]
[1718212961201,2.3312,158.72,158.63,7.63]
[1718212961202,9.961,158.73,158.67,7.63]
[1718212962220,9.961,158.73,158.63,7.63]
[1718212962396,9.961,158.73,158.67,7.63]
[1718212963794,9.961,158.73,158.64,45.0]
[1718212963995,7.63,158.73,158.67,7.63]
[1718212964311,7.63,158.74,158.68,7.63]
[1718212964805,15.4753,158.75,158.68,7.63]
[1718212965006,23.1053,158.75,158.69,7.63]
[1718212965587,15.1353,158.75,158.7,7.63]
[1718212968517,22.7653,158.75,158.69,7.63]
[1718212970088,7.63,158.74,158.68,7.63]
[1718212980134,7.63,158.74,158.69,7.63]
[1718212980329,15.1353,158.75,158.69,7.63]
[1718212980547,22.7653,158.75,158.69,7.63]
[1718212982539,15.1353,158.75,158.69,7.63]
[1718212982743,15.1353,158.75,158.7,7.63]
[1718212983234,22.7653,158.75,158.69,7.63]
[1718212983918,15.1353,158.75,158.69,7.63]
[1718212984117,22.7653,158.75,158.69,7.63]
[1718212993330,22.7653,158.75,158.68,7.63]
[1718212993657,22.7653,158.75,158.69,45.0]
[1718212994159,22.7653,158.75,158.69,52.63]
[1718212994938,22.0197,158.79,158.72,7.63]
[1718212995148,29.6497,158.79,158.73,7.63]
[1718212995450,22.0197,158.79,158.73,7.63]
[1718212995744,29.6497,158.79,158.73,7.63]
[1718212997227,22.0197,158.79,158.73,7.63]
[1718212997439,29.6497,158.79,158.73,7.63]
[1718213001855,7.63,158.78,158.73,7.63]
[1718213003855,7.63,158.78,158.72,7.63]
[1718213005847,23.718,158.74,158.64,30.52]
[1718213006058,7.63,158.73,158.67,7.63]
[1718213006363,7.63,158.72,158.66,7.63]
[1718213007168,7.63,158.73,158.67,7.63]
[1718213007665,23.718,158.74,158.68,7.63]
[1718213008469,16.088,158.74,158.68,7.63]
[1718213008677,23.718,158.74,158.64,7.63]
[1718213008845,23.718,158.74,158.67,7.63]
[1718213011175,7.63,158.73,158.67,7.63]
[1718213013877,7.63,158.73,158.68,7.63]
[1718213015253,7.63,158.73,158.67,7.63]
[1718213016382,7.63,158.73,158.65,45.0]
[1718213016584,7.63,158.72,158.66,7.63]
[1718213016877,7.63,158.71,158.65,7.63]
[1718213017051,7.63,158.71,158.64,45.0]
[1718213017254,7.63,158.71,158.65,7.63]
[1718213017448,7.63,158.71,158.64,45.0]
[1718213017660,7.63,158.71,158.65,7.63]
[1718213019283,7.63,158.71,158.64,45.0]
[1718213019475,7.63,158.71,158.65,7.63]
[1718213019777,7.63,158.7,158.64,45.0]
[1718213020158,7.63,158.7,158.64,52.63]
[1718213022978,7.63,158.7,158.64,45.0]
[1718213023166,7.63,158.7,158.64,52.63]
[1718213024077,15.9843,158.69,158.59,22.188]
[1718213024281,7.63,158.67,158.57,6.0]
[1718213024461,7.63,158.67,158.61,7.63]
[1718213024958,7.63,158.66,158.6,7.63]
[1718213025487,7.63,158.66,158.61,45.0]
[1718213026678,7.63,158.66,158.61,52.63]
[1718213026981,7.63,158.67,158.61,52.63]
[1718213028558,7.63,158.67,158.61,45.0]
[1718213028771,7.63,158.67,158.61,52.63]
[1718213029087,7.63,158.67,158.57,6.0]
[1718213029388,16.251,158.65,158.6,7.63]
[1718213029568,23.881,158.65,158.59,7.63]
[1718213029880,23.881,158.65,158.57,6.0]
[1718213030065,7.63,158.64,158.58,7.63]
[1718213031810,13.9965,158.64,158.57,6.0]
[1718213032016,13.9965,158.64,158.58,45.0]
[1718213032208,7.63,158.63,158.58,45.0]
[1718213032406,7.63,158.63,158.57,6.0]
[1718213032639,7.63,158.62,158.57,6.0]
[1718213032932,7.63,158.59,158.57,6.0]
[1718213033610,16.4583,158.6,158.57,6.0]
[1718213033611,24.0883,158.6,158.57,6.0]
[1718213033923,16.4583,158.6,158.57,6.0]
[1718213034242,16.4583,158.6,158.57,13.63]
[1718213034708,7.63,158.63,158.57,13.63]
[1718213036521,7.63,158.63,158.57,6.0]
[1718213036821,7.63,158.63,158.57,13.63]
[1718213039437,29.5207,158.64,158.58,7.63]
[1718213039716,21.8907,158.64,158.59,7.63]
[1718213040824,21.8907,158.64,158.57,6.0]
[1718213041006,31.853,158.64,158.57,13.63]
[1718213041527,29.5207,158.64,158.57,13.63]
[1718213042417,29.5207,158.64,158.58,7.63]
[1718213044134,21.8907,158.64,158.59,7.63]
[1718213044436,15.5242,158.64,158.59,7.63]
[1718213044640,15.5242,158.64,158.6,7.63]
[1718213045628,22.482,158.68,158.61,7.63]
[1718213045836,7.8,158.67,158.61,7.63]
[1718213046332,0.17,158.67,158.61,7.63]
[1718213046643,7.8,158.67,158.61,7.63]
[1718213046942,10.1318,158.67,158.61,7.63]
[1718213047247,7.8,158.67,158.61,7.63]
[1718213047419,0.17,158.67,158.61,7.63]
[1718213047618,7.8,158.67,158.61,7.63]
[1718213048041,10.1319,158.67,158.61,7.63]
[1718213048243,121.2688,158.72,158.63,7.63]
[1718213048454,9.9613,158.71,158.65,7.63]
[1718213048742,7.63,158.71,158.65,7.63]
[1718213049249,23.6,158.72,158.65,7.63]
[1718213049427,9.9613,158.71,158.65,7.63]
[1718213049629,2.3313,158.71,158.66,7.63]
[1718213050246,9.9613,158.71,158.65,7.63]
[1718213050449,2.3313,158.71,158.65,7.63]
[1718213050755,9.9613,158.71,158.65,7.63]
[1718213050932,2.3314,158.7,158.65,7.63]
[1718213051136,9.9614,158.7,158.64,7.63]
[1718213051641,9.9614,158.7,158.6,6.5657]
[1718213051642,7.63,158.69,158.6,6.5657]
[1718213051825,7.63,158.69,158.63,7.63]
[1718213052019,9.9614,158.7,158.63,7.63]
[1718213052220,9.9614,158.7,158.64,7.63]
[1718213052628,7.63,158.7,158.64,7.63]
[1718213053826,7.63,158.71,158.65,7.63]
[1718213054431,9.9613,158.71,158.65,7.63]
[1718213056444,7.63,158.71,158.65,7.63]
[1718213056743,21.6088,158.72,158.66,7.63]
[1718213057044,29.0688,158.72,158.66,7.63]
[1718213057247,21.4388,158.72,158.66,7.63]
[1718213058950,23.7699,158.72,158.66,7.63]
[1718213059136,21.4388,158.72,158.66,7.63]
[1718213059342,21.4388,158.72,158.67,7.63]
[1718213060450,21.2688,158.72,158.67,7.63]
[1718213060742,15.0545,158.72,158.67,7.63]
[1718213061745,2.3308,158.75,158.69,7.63]
[1718213062145,2.3308,158.74,158.69,7.63]
[1718213062449,9.9608,158.75,158.69,7.63]
[1718213063054,2.3308,158.74,158.69,7.63]
[1718213064058,9.9608,158.75,158.69,7.63]
[1718213064234,2.3308,158.74,158.69,7.63]
[1718213065144,9.9607,158.75,158.69,7.63]
[1718213065832,2.3308,158.74,158.69,7.63]
[1718213066032,9.9608,158.74,158.68,7.63]
[1718213066637,7.63,158.73,158.67,7.63]
[1718213067559,9.9609,158.74,158.68,7.63]
[1718213067933,2.3307,158.75,158.68,7.63]
[1718213068268,7.63,158.74,158.68,7.63]
[1718213069851,2.5007,158.75,158.68,7.63]
[1718213070056,7.63,158.74,158.68,7.63]
[1718213071982,7.63,158.74,158.64,15.0534]
[1718213072139,7.63,158.74,158.68,7.63]
[1718213076845,2.5007,158.75,158.68,7.63]
[1718213077063,7.63,158.74,158.68,7.63]
[1718213084961,7.63,158.74,158.65,6.4934]
[1718213084962,7.63,158.75,158.69,7.63]
[1718213085167,282.3301,158.76,158.69,7.63]
[1718213085364,284.6606,158.76,158.66,0.17]
[1718213085555,284.6606,158.76,158.69,7.63]
[1718213086048,282.3301,158.76,158.69,7.63]
[1718213086667,274.7001,158.76,158.69,7.63]
[1718213086872,282.3301,158.76,158.69,7.63]
[1718213087600,284.6606,158.76,158.69,7.63]
[1718213088080,277.0306,158.76,158.66,45.34]
[1718213088275,284.6606,158.76,158.69,7.63]
[1718213091486,282.3301,158.76,158.69,7.63]
[1718213091956,7.63,158.75,158.69,7.63]
[1718213092159,274.7001,158.76,158.69,7.63]
[1718213092373,282.3301,158.76,158.7,7.63]
[1718213092979,274.7001,158.76,158.7,7.63]
[1718213094898,282.3301,158.76,158.66,45.34]
[1718213095105,7.8,158.75,158.66,45.0]
[1718213095260,9.9608,158.74,158.68,7.63]
[1718213095461,7.63,158.74,158.68,7.63]
[1718213097587,10.1308,158.75,158.68,7.63]
[1718213100281,2.3308,158.74,158.68,7.63]
[1718213100484,0.17,158.75,158.69,7.63]
[1718213100686,0.34,158.75,158.69,7.63]
[1718213102163,0.17,158.75,158.69,7.63]
[1718213102360,17.4306,158.76,158.7,7.63]
[1718213102361,15.1001,158.76,158.7,7.63]
[1718213102790,22.7301,158.76,158.69,7.63]
[1718213102963,25.0606,158.76,158.69,7.63]
[1718213108011,17.4306,158.76,158.69,7.63]
[1718213108400,2.3307,158.75,158.69,7.63]
[1718213108591,2.5007,158.75,158.68,7.63]
[1718213109410,0.17,158.75,158.68,7.63]
[1718213109596,0.34,158.75,158.68,7.63]
[1718213109797,2.6707,158.75,158.68,7.63]
[1718213111915,2.6707,158.75,158.69,7.63]
[1718213112398,0.34,158.75,158.69,7.63]
[1718213112719,10.3007,158.75,158.68,7.63]
[1718213113014,7.97,158.75,158.68,7.63]
[1718213113213,10.3007,158.75,158.66,45.0]
[1718213113388,10.3007,158.75,158.69,7.63]
[1718213113801,7.97,158.75,158.69,7.63]
[1718213115415,10.3007,158.75,158.69,7.63]
[1718213116211,0.34,158.75,158.66,45.0]
[1718213116413,9.9609,158.74,158.67,7.63]
[1718213116910,2.3309,158.74,158.67,7.63]
[1718213117115,9.961,158.73,158.67,7.63]
[1718213117492,7.63,158.73,158.67,7.63]
[1718213118008,7.63,158.73,158.62,6.0196]
[1718213118216,26.4191,158.71,158.62,6.0196]
[1718213118516,10.3014,158.7,158.64,7.63]
[1718213118713,7.97,158.7,158.64,7.63]
[1718213120609,0.34,158.7,158.65,7.63]
[1718213122022,0.34,158.7,158.66,7.63]
[1718213122202,16.4578,158.71,158.67,7.63]
[1718213123925,16.4578,158.71,158.61,0.17]
[1718213124099,18.7891,158.71,158.66,7.63]
[1718213125418,18.7891,158.71,158.61,45.51]
[1718213125619,18.7891,158.71,158.66,7.63]
[1718213126416,2.3315,158.7,158.66,7.63]
[1718213126616,2.3315,158.7,158.65,7.63]
[1718213130516,26.4191,158.71,158.65,7.63]
[1718213130928,18.7891,158.71,158.66,7.63]
[1718213131106,16.012,158.75,158.7,7.63]
[1718213131304,16.012,158.75,158.72,7.63]
[1718213132824,6.4987,158.77,158.73,7.63]
[1718213133029,23.0725,158.79,158.73,7.63]
[1718213133326,2.3302,158.78,158.73,7.63]
[1718213133834,17.7726,158.79,158.73,7.63]
[1718213134035,7.63,158.78,158.73,7.63]
[1718213135310,9.9602,158.78,158.65,0.17]
[1718213135512,9.9602,158.78,158.72,7.63]
[1718213137021,7.63,158.78,158.72,7.63]
[1718213139124,7.63,158.78,158.65,65.68]
[1718213139331,7.63,158.78,158.72,7.63]
[1718213154652,7.63,158.78,158.73,7.63]
[1718213158941,0.17,158.78,158.73,7.63]
[1718213159247,0.68,158.78,158.73,7.63]
[1718213163167,0.51,158.78,158.73,7.63]
[1718213163375,0.51,158.78,158.74,7.63]
[1718213165048,0.51,158.78,158.73,7.63]
[1718213175177,0.51,158.78,158.72,7.63]
[1718213176080,0.51,158.78,158.73,7.63]
[1718213182489,0.51,158.78,158.72,7.63]
[1718213183703,6.1484,158.81,158.76,7.63]
[1718213183908,283.8498,158.83,158.77,7.63]
[1718213184106,7.63,158.82,158.72,7.63]
[1718213184289,7.63,158.82,158.76,7.63]
[1718213185198,0.17,158.82,158.77,7.63]
[1718213185506,0.68,158.82,158.77,7.63]
[1718213185710,0.51,158.82,158.77,7.63]
[1718213185905,0.34,158.82,158.77,7.63]
[1718213186106,0.34,158.82,158.78,7.63]
[1718213191502,21.72871337,158.83,158.78,7.63]
[1718213191691,5.10891337,158.83,158.82,7.63]
[1718213191897,16.1811,158.86,158.74,0.68]
[1718213192115,7.63,158.85,158.74,45.17]
[1718213192315,7.63,158.85,158.79,7.63]
[1718213192521,18.5102,158.86,158.8,7.63]
[1718213192522,23.8111,158.86,158.8,7.63]
[1718213192807,23.8111,158.86,158.81,7.63]
[1718213192996,0.68,158.85,158.74,45.17]
[1718213193414,0.68,158.85,158.81,7.63]
[1718213193600,0.68,158.85,158.8,7.63]
[1718213194002,0.68,158.85,158.74,45.17]
[1718213194225,0.51,158.85,158.8,7.63]
[1718213194398,0.34,158.85,158.8,7.63]
[1718213199325,0.34,158.85,158.81,7.63]
[1718213203631,0.34,158.85,158.8,7.63]
[1718213207044,0.34,158.85,158.74,45.17]
[1718213207328,0.34,158.85,158.8,7.63]
[1718213211629,21.27494601,158.86,158.8,7.63]
[1718213211828,21.27494601,158.86,158.82,7.63]
[1718213212054,21.27494601,158.86,158.83,7.63]
[1718213212615,21.27494601,158.86,158.75,0.17]
[1718213212824,16.1811,158.86,158.82,7.63]
[1718213213622,16.1811,158.86,158.81,7.63]
[1718213213924,16.1811,158.86,158.75,0.51]
[1718213214128,0.17,158.85,158.74,45.17]
[1718213214336,0.34,158.85,158.8,7.63]
[1718213214647,16.1811,158.86,158.81,7.63]
[1718213215015,16.1811,158.86,158.82,7.63]
[1718213215210,16.1811,158.86,158.75,0.17]
[1718213215413,16.1811,158.86,158.82,7.63]
[1718213216129,16.1811,158.86,158.81,7.63]
[1718213216311,16.1811,158.86,158.82,7.63]
[1718213218333,16.1811,158.86,158.75,0.51]
[1718213218642,16.1811,158.86,158.81,7.63]
[1718213220943,0.17,158.85,158.74,45.17]
[1718213221119,0.17,158.85,158.8,7.63]
[1718213221120,0.34,158.85,158.8,7.63]
[1718213224030,0.17,158.85,158.8,7.63]
[1718213224231,16.1811,158.86,158.81,7.63]
[1718213226460,0.17,158.85,158.74,45.17]
[1718213226640,0.34,158.85,158.8,7.63]
[1718213226845,2.6692,158.85,158.79,7.63]
[1718213227161,7.63,158.83,158.73,21.249]
[1718213227456,9.9595,158.83,158.77,7.63]
[1718213227746,23.262,158.82,158.76,7.63]
[1718213227922,15.632,158.82,158.76,7.63]
[1718213228240,23.262,158.82,158.76,7.63]
[1718213230346,23.262,158.82,158.77,7.63]
[1718213230347,15.632,158.82,158.77,7.63]
[1718213231366,15.462,158.82,158.77,7.63]
[1718213231572,15.462,158.82,158.78,7.63]
[1718213232260,15.462,158.82,158.79,7.63]
[1718213234643,6.3938,158.85,158.79,7.63]
[1718213234845,0.34,158.84,158.8,7.63]
[1718213235465,6.3938,158.85,158.73,21.3221]
[1718213235466,6.3938,158.85,158.81,7.63]
[1718213238580,16.6487,158.86,158.83,7.63]
[1718213241779,16.6487,158.86,158.74,0.17]
[1718213241985,16.6487,158.86,158.8,7.63]
[1718213241986,2.6692,158.85,158.8,7.63]
[1718213242286,0.34,158.85,158.8,7.63]
[1718213242460,2.6692,158.85,158.8,7.63]
[1718213242780,0.34,158.85,158.8,7.63]
[1718213242981,2.6692,158.85,158.8,7.63]
[1718213243183,0.34,158.85,158.8,7.63]
[1718213244175,0.34,158.85,158.81,7.63]
[1718213247091,16.6487,158.86,158.81,7.63]
[1718213250685,16.6487,158.86,158.82,7.63]
[1718213260095,18.9778,158.86,158.82,7.63]
[1718213260805,18.9778,158.86,158.81,7.63]
[1718213261178,18.9778,158.86,158.74,0.68]
[1718213261480,18.9778,158.86,158.81,7.63]
[1718213261789,18.9778,158.86,158.74,45.68]
[1718213261973,18.9778,158.86,158.81,7.63]
[1718213263083,2.3296,158.83,158.74,45.68]
[1718213263271,9.9593,158.85,158.79,7.63]
[1718213263471,7.63,158.85,158.79,7.63]
[1718213263769,16.6487,158.86,158.8,7.63]
[1718213263970,0.34,158.85,158.8,7.63]
[1718213264997,16.6487,158.86,158.81,7.63]
[1718213266406,16.6487,158.86,158.82,7.63]
[1718213280898,16.6487,158.86,158.74,45.68]
[1718213281098,18.9778,158.86,158.8,7.63]
[1718213281300,18.9778,158.86,158.74,45.68]
[1718213281495,16.6487,158.86,158.8,7.63]
[1718213281904,18.9777,158.86,158.8,7.63]
[1718213282404,16.6487,158.86,158.75,20.0]
[1718213282614,16.6487,158.86,158.8,7.63]
[1718213283389,16.6487,158.86,158.81,7.63]
[1718213283590,16.6487,158.86,158.82,7.63]
[1718213283903,16.6487,158.86,158.81,7.63]
[1718213284813,16.6487,158.86,158.82,7.63]
[1718213285132,6.1674,158.89,158.84,7.63]
[1718213285293,6.1674,158.89,158.83,7.63]
[1718213286883,13.7974,158.89,158.83,7.63]
[1718213292594,16.126,158.89,158.83,7.63]
[1718213292800,7.63,158.88,158.82,7.63]
[1718213293319,9.9588,158.88,158.82,7.63]
[1718213293495,9.959,158.86,158.74,22.2835]
[1718213293698,26.507,158.86,158.8,7.63]
[1718213294236,24.178,158.86,158.8,7.63]
[1718213294716,24.178,158.86,158.74,22.2835]
[1718213294912,24.178,158.86,158.8,7.63]
[1718213295837,16.548,158.86,158.8,7.63]
[1718213301629,16.548,158.86,158.81,7.63]
[1718213302124,16.548,158.86,158.83,7.63]
[1718213311037,6.1674,158.89,158.84,7.63]
[1718213311223,16.126,158.89,158.83,7.63]
[1718213312946,13.7974,158.89,158.83,7.63]
[1718213313537,16.126,158.89,158.83,7.63]
[1718213313746,9.9588,158.88,158.82,7.63]
[1718213314733,7.63,158.88,158.82,7.63]
[1718213315230,7.63,158.88,158.76,0.17]
[1718213315231,9.959,158.87,158.81,7.63]